[Event "Titled Tuesday Blitz March 21 Late 2023"]
[White "Fernandez, Maria Florencia"]
[Black "Rostomyan, Mikayel"]
[WhiteFideId "116459"]
[BlackFideId "13313754"]
[WhiteElo "2155"]
[BlackElo "2009"]
[Result "0-1"]
[Round "03"]
[TimeControl "180+2"]
[Date "2023.03.21"]
[WhiteClock "0:00:01"]
[BlackClock "0:00:46"]

1. d4 {[%clk 0:03:00]}  Nf6 {[%clk 0:02:57]} 2. c4 {[%clk 0:02:59]}  e6 {[%clk 0:02:52]} 3. Nc3 {[%clk 0:02:58]}  Bb4 {[%clk 0:02:48]} 4. a3 {[%clk 0:02:58]}  Bxc3+ {[%clk 0:02:44]} 5. bxc3 {[%clk 0:02:59]}  O-O {[%clk 0:02:44]} 6. f3 {[%clk 0:02:55]}  d5 {[%clk 0:02:44]} 7. e3 {[%clk 0:02:53]}  c5 {[%clk 0:02:43]} 8. Bd3 {[%clk 0:02:53]}  Nc6 {[%clk 0:02:41]} 9. Ne2 {[%clk 0:02:52]}  cxd4 {[%clk 0:02:40]} 10. exd4 {[%clk 0:02:41]}  e5 {[%clk 0:02:39]} 11. cxd5 {[%clk 0:02:38]}  Nxd5 {[%clk 0:02:38]} 12. c4 {[%clk 0:02:37]}  Nf4 {[%clk 0:02:28]} 13. Nxf4 {[%clk 0:02:36]}  exf4 {[%clk 0:02:29]} 14. d5 {[%clk 0:02:32]}  Re8+ {[%clk 0:02:18]} 15. Kf1 {[%clk 0:02:22]}  Ne5 {[%clk 0:02:16]} 16. Be2 {[%clk 0:02:12]}  Ng6 {[%clk 0:01:56]} 17. Bb2 {[%clk 0:01:50]}  Bf5 {[%clk 0:01:47]} 18. Qd4 {[%clk 0:01:48]}  f6 {[%clk 0:01:45]} 19. Kf2 {[%clk 0:01:42]}  b6 {[%clk 0:01:41]} 20. Rhe1 {[%clk 0:01:24]}  Qd6 {[%clk 0:01:38]} 21. Bf1 {[%clk 0:01:21]}  Re3 {[%clk 0:01:26]} 22. Rxe3 {[%clk 0:01:09]}  fxe3+ {[%clk 0:01:25]} 23. Qxe3 {[%clk 0:01:10]}  Qxh2 {[%clk 0:01:23]} 24. c5 {[%clk 0:00:50]}  bxc5 {[%clk 0:01:14]} 25. Qxc5 {[%clk 0:00:49]}  Nf4 {[%clk 0:01:14]} 26. Qc6 {[%clk 0:00:27]}  Rc8 {[%clk 0:01:06]} 27. Qb7 {[%clk 0:00:16]}  Re8 {[%clk 0:00:47]} 28. Bd4 {[%clk 0:00:01]}  Nh3# {[%clk 0:00:46]} 0-1


[Site "https://www.chess.com"]

[Event "Titled Tuesday Blitz March 21 Late 2023"]
[White "Gunduz, Umut Erdem"]
[Black "Tworuszka, Michal"]
[WhiteFideId "6381383"]
[BlackFideId "1117858"]
[WhiteElo "2182"]
[BlackElo "2450"]
[Result "1-0"]
[Round "03"]
[TimeControl "180+2"]
[Date "2023.03.21"]
[WhiteClock "0:02:08"]
[BlackClock "0:01:06"]

1. e4 {[%clk 0:03:00]}  c5 {[%clk 0:02:57]} 2. Nf3 {[%clk 0:03:00]}  d6 {[%clk 0:02:57]} 3. d4 {[%clk 0:03:01]}  cxd4 {[%clk 0:02:57]} 4. Nxd4 {[%clk 0:03:02]}  Nf6 {[%clk 0:02:58]} 5. Nc3 {[%clk 0:03:02]}  a6 {[%clk 0:02:58]} 6. Bg5 {[%clk 0:03:03]}  e6 {[%clk 0:02:56]} 7. f4 {[%clk 0:03:03]}  h6 {[%clk 0:02:57]} 8. Bh4 {[%clk 0:03:03]}  Qb6 {[%clk 0:02:57]} 9. a3 {[%clk 0:03:04]}  Nbd7 {[%clk 0:02:54]} 10. Bf2 {[%clk 0:03:04]}  Qc7 {[%clk 0:02:54]} 11. Qf3 {[%clk 0:03:05]}  b5 {[%clk 0:02:53]} 12. O-O-O {[%clk 0:03:00]}  Bb7 {[%clk 0:02:53]} 13. g4 {[%clk 0:03:00]}  g5 {[%clk 0:02:49]} 14. h4 {[%clk 0:02:58]}  gxf4 {[%clk 0:02:48]} 15. g5 {[%clk 0:02:58]}  hxg5 {[%clk 0:02:29]} 16. hxg5 {[%clk 0:02:59]}  Rxh1 {[%clk 0:02:29]} 17. Qxh1 {[%clk 0:02:59]}  Ng8 {[%clk 0:02:25]} 18. g6 {[%clk 0:02:26]}  O-O-O {[%clk 0:01:42]} 19. gxf7 {[%clk 0:02:25]}  Ngf6 {[%clk 0:01:36]} 20. Nxe6 {[%clk 0:02:24]}  Qc6 {[%clk 0:01:31]} 21. Nxd8 {[%clk 0:02:23]}  Kxd8 {[%clk 0:01:31]} 22. Bh3 {[%clk 0:02:19]}  Ne5 {[%clk 0:01:28]} 23. Bh4 {[%clk 0:02:16]}  Ke7 {[%clk 0:01:06]} 24. Nd5+ {[%clk 0:02:08]}  Kxf7 {[%clk 0:01:06]} 25. Bxf6 {[%clk 0:02:08]} 1-0


[Site "https://www.chess.com"]

[Event "Titled Tuesday Blitz March 21 Late 2023"]
[White "Jessel, Stephen"]
[Black "Piriflillo"]
[WhiteFideId "628859"]
[WhiteElo "2268"]
[BlackElo "2435"]
[Result "1-0"]
[Round "03"]
[TimeControl "180+2"]
[Date "2023.03.21"]
[WhiteClock "0:00:03"]
[BlackClock "0:00:01"]

1. g3 {[%clk 0:02:55]}  e5 {[%clk 0:02:55]} 2. Bg2 {[%clk 0:02:53]}  d5 {[%clk 0:02:54]} 3. c4 {[%clk 0:02:53]}  d4 {[%clk 0:02:49]} 4. d3 {[%clk 0:02:50]}  Nc6 {[%clk 0:02:49]} 5. Nf3 {[%clk 0:02:50]}  f6 {[%clk 0:02:41]} 6. O-O {[%clk 0:02:50]}  Bc5 {[%clk 0:02:35]} 7. Na3 {[%clk 0:02:38]}  Nge7 {[%clk 0:02:28]} 8. Rb1 {[%clk 0:02:35]}  O-O {[%clk 0:02:21]} 9. Bd2 {[%clk 0:02:35]}  a5 {[%clk 0:02:14]} 10. Nb5 {[%clk 0:02:32]}  Bf5 {[%clk 0:01:54]} 11. b3 {[%clk 0:02:16]}  Ng6 {[%clk 0:01:43]} 12. Ne1 {[%clk 0:02:05]}  Qd7 {[%clk 0:01:29]} 13. a3 {[%clk 0:01:59]}  Qe7 {[%clk 0:01:21]} 14. Nc2 {[%clk 0:01:48]}  e4 {[%clk 0:01:10]} 15. dxe4 {[%clk 0:01:44]}  Bxe4 {[%clk 0:01:08]} 16. Bxe4 {[%clk 0:01:42]}  Qxe4 {[%clk 0:01:07]} 17. Nxc7 {[%clk 0:01:39]}  Rac8 {[%clk 0:01:08]} 18. Nd5 {[%clk 0:01:25]}  Rfe8 {[%clk 0:00:56]} 19. b4 {[%clk 0:01:19]}  axb4 {[%clk 0:00:51]} 20. axb4 {[%clk 0:01:20]}  Ba7 {[%clk 0:00:52]} 21. Ra1 {[%clk 0:01:07]}  Bb8 {[%clk 0:00:41]} 22. Nb6 {[%clk 0:00:32]}  Rcd8 {[%clk 0:00:38]} 23. b5 {[%clk 0:00:26]}  Nce5 {[%clk 0:00:32]} 24. Nb4 {[%clk 0:00:21]}  d3 {[%clk 0:00:24]} 25. exd3 {[%clk 0:00:18]}  Nxd3 {[%clk 0:00:18]} 26. Qb1 {[%clk 0:00:12]}  Qd4 {[%clk 0:00:12]} 27. Qxd3 {[%clk 0:00:07]}  Qxb6 {[%clk 0:00:11]} 28. Nd5 {[%clk 0:00:08]}  Qe6 {[%clk 0:00:09]} 29. Rae1 {[%clk 0:00:07]}  Ne5 {[%clk 0:00:10]} 30. Qe4 {[%clk 0:00:06]}  Qf7 {[%clk 0:00:09]} 31. Kg2 {[%clk 0:00:06]}  Ng6 {[%clk 0:00:05]} 32. Qf3 {[%clk 0:00:06]}  Ne5 {[%clk 0:00:05]} 33. Qf5 {[%clk 0:00:06]}  Nxc4 {[%clk 0:00:04]} 34. Rxe8+ {[%clk 0:00:06]}  Rxe8 {[%clk 0:00:05]} 35. Bb4 {[%clk 0:00:04]}  Ne5 {[%clk 0:00:03]} 36. Rd1 {[%clk 0:00:04]}  Qg6 {[%clk 0:00:01]} 37. Ne7+ {[%clk 0:00:03]}  Rxe7 {[%clk 0:00:01]} 38. Qxg6 {[%clk 0:00:03]} 1-0


[Site "https://www.chess.com"]

[Event "Titled Tuesday Blitz March 21 Late 2023"]
[White "Kovalevsky, Stanislav"]
[Black "Alex_Sahakyan2006"]
[WhiteFideId "13508598"]
[WhiteElo "2174"]
[BlackElo "2623"]
[Result "0-1"]
[Round "03"]
[TimeControl "180+2"]
[Date "2023.03.21"]
[WhiteClock "0:00:19"]
[BlackClock "0:01:03"]

1. c4 {[%clk 0:03:00]}  e6 {[%clk 0:02:59]} 2. e4 {[%clk 0:03:00]}  e5 {[%clk 0:02:51]} 3. Nc3 {[%clk 0:02:59]}  Nc6 {[%clk 0:02:50]} 4. g3 {[%clk 0:02:59]}  Bc5 {[%clk 0:02:49]} 5. Bg2 {[%clk 0:03:00]}  d6 {[%clk 0:02:49]} 6. Nge2 {[%clk 0:03:00]}  f5 {[%clk 0:02:50]} 7. d3 {[%clk 0:02:57]}  Nf6 {[%clk 0:02:49]} 8. Bg5 {[%clk 0:02:41]}  Bxf2+ {[%clk 0:02:43]} 9. Kd2 {[%clk 0:02:07]}  h6 {[%clk 0:02:32]} 10. Bxf6 {[%clk 0:02:04]}  Qxf6 {[%clk 0:02:29]} 11. Nd5 {[%clk 0:02:03]}  Qd8 {[%clk 0:02:28]} 12. Rf1 {[%clk 0:02:00]}  Bb6 {[%clk 0:02:28]} 13. exf5 {[%clk 0:01:59]}  Qg5+ {[%clk 0:02:26]} 14. Kc3 {[%clk 0:01:57]}  Bxf5 {[%clk 0:02:15]} 15. b4 {[%clk 0:01:53]}  O-O {[%clk 0:02:08]} 16. h4 {[%clk 0:01:35]}  Bd4+ {[%clk 0:01:43]} 17. Kb3 {[%clk 0:01:34]}  Qg6 {[%clk 0:01:42]} 18. b5 {[%clk 0:01:23]}  Kh7 {[%clk 0:01:30]} 19. Rxf5 {[%clk 0:01:11]}  Rxf5 {[%clk 0:01:26]} 20. bxc6 {[%clk 0:01:04]}  bxc6 {[%clk 0:01:27]} 21. Ne7 {[%clk 0:01:05]}  Rb8+ {[%clk 0:01:26]} 22. Kc2 {[%clk 0:00:47]}  Rb2+ {[%clk 0:01:17]} 23. Kc1 {[%clk 0:00:46]}  Rf2 {[%clk 0:00:56]} 24. Nxg6 {[%clk 0:00:19]}  Rfxe2 {[%clk 0:00:56]} 25. Qxe2 {[%clk 0:00:19]}  Rxe2 {[%clk 0:00:56]} 26. Be4 {[%clk 0:00:18]}  Bxa1 {[%clk 0:00:56]} 27. Ne7+ {[%clk 0:00:16]}  Kh8 {[%clk 0:00:54]} 28. Nxc6 {[%clk 0:00:14]}  Bd4 {[%clk 0:00:54]} 29. Nxd4 {[%clk 0:00:12]}  exd4 {[%clk 0:00:55]} 30. a4 {[%clk 0:00:12]}  a5 {[%clk 0:00:54]} 31. g4 {[%clk 0:00:11]}  g5 {[%clk 0:00:53]} 32. h5 {[%clk 0:00:11]}  Kg7 {[%clk 0:00:51]} 33. Kd1 {[%clk 0:00:11]}  Rxe4 {[%clk 0:00:51]} 34. dxe4 {[%clk 0:00:12]}  Kf7 {[%clk 0:00:52]} 35. Ke2 {[%clk 0:00:12]}  Ke6 {[%clk 0:00:53]} 36. Kd2 {[%clk 0:00:13]}  Ke5 {[%clk 0:00:53]} 37. Kd3 {[%clk 0:00:13]}  c5 {[%clk 0:00:54]} 38. Ke2 {[%clk 0:00:11]}  Kxe4 {[%clk 0:00:55]} 39. Kd2 {[%clk 0:00:12]}  Kf4 {[%clk 0:00:54]} 40. Kd3 {[%clk 0:00:13]}  Kxg4 {[%clk 0:00:54]} 41. Ke4 {[%clk 0:00:14]}  Kxh5 {[%clk 0:00:54]} 42. Kd5 {[%clk 0:00:14]}  d3 {[%clk 0:00:55]} 43. Kxd6 {[%clk 0:00:15]}  d2 {[%clk 0:00:56]} 44. Kc6 {[%clk 0:00:15]}  d1=Q {[%clk 0:00:57]} 45. Kb5 {[%clk 0:00:15]}  Qb3+ {[%clk 0:00:57]} 46. Kxa5 {[%clk 0:00:15]}  Qb4+ {[%clk 0:00:58]} 47. Ka6 {[%clk 0:00:16]}  Qxa4+ {[%clk 0:00:58]} 48. Kb6 {[%clk 0:00:16]}  Qb4+ {[%clk 0:00:59]} 49. Ka6 {[%clk 0:00:16]}  Qxc4+ {[%clk 0:01:00]} 50. Ka7 {[%clk 0:00:17]}  Qb4 {[%clk 0:01:00]} 51. Ka6 {[%clk 0:00:18]}  c4 {[%clk 0:01:01]} 52. Ka7 {[%clk 0:00:18]}  c3 {[%clk 0:01:02]} 53. Ka8 {[%clk 0:00:19]}  c2 {[%clk 0:01:03]} 0-1


[Site "https://www.chess.com"]

[Event "Titled Tuesday Blitz March 21 Late 2023"]
[White "Gontcharov, Vladislav"]
[Black "Castellanos Gomez, Alejandro"]
[WhiteFideId "4123492"]
[BlackFideId "22284141"]
[WhiteElo "2470"]
[BlackElo "2158"]
[Result "1-0"]
[Round "03"]
[TimeControl "180+2"]
[Date "2023.03.21"]
[WhiteClock "0:00:17"]
[BlackClock "0:00:05"]

1. e4 {[%clk 0:03:00]}  e6 {[%clk 0:02:59]} 2. d4 {[%clk 0:02:57]}  d5 {[%clk 0:03:00]} 3. Nd2 {[%clk 0:02:57]}  c5 {[%clk 0:02:57]} 4. exd5 {[%clk 0:02:56]}  Qxd5 {[%clk 0:02:57]} 5. Ngf3 {[%clk 0:02:56]}  cxd4 {[%clk 0:02:57]} 6. Bc4 {[%clk 0:02:56]}  Qd8 {[%clk 0:02:57]} 7. O-O {[%clk 0:02:55]}  Nc6 {[%clk 0:02:57]} 8. Nb3 {[%clk 0:02:55]}  Nf6 {[%clk 0:02:57]} 9. Nbxd4 {[%clk 0:02:53]}  Nxd4 {[%clk 0:02:57]} 10. Nxd4 {[%clk 0:02:53]}  a6 {[%clk 0:02:56]} 11. Re1 {[%clk 0:02:46]}  Bd6 {[%clk 0:02:34]} 12. Bg5 {[%clk 0:02:25]}  Bxh2+ {[%clk 0:02:27]} 13. Kxh2 {[%clk 0:02:23]}  Qc7+ {[%clk 0:02:27]} 14. Kg1 {[%clk 0:02:16]}  Qxc4 {[%clk 0:02:27]} 15. Bxf6 {[%clk 0:02:15]}  gxf6 {[%clk 0:02:25]} 16. c3 {[%clk 0:02:15]}  Bd7 {[%clk 0:02:21]} 17. Qf3 {[%clk 0:02:14]}  O-O-O {[%clk 0:02:04]} 18. Qxf6 {[%clk 0:02:13]}  Rhf8 {[%clk 0:01:39]} 19. Re5 {[%clk 0:02:10]}  Kb8 {[%clk 0:01:33]} 20. Re3 {[%clk 0:01:54]}  Bc8 {[%clk 0:01:28]} 21. b3 {[%clk 0:01:45]}  Qc7 {[%clk 0:01:26]} 22. Rae1 {[%clk 0:01:41]}  Rd5 {[%clk 0:01:25]} 23. Nxe6 {[%clk 0:01:29]}  Bxe6 {[%clk 0:01:24]} 24. Rxe6 {[%clk 0:01:28]}  Rh5 {[%clk 0:00:56]} 25. Re8+ {[%clk 0:01:17]}  Rxe8 {[%clk 0:00:56]} 26. Rxe8+ {[%clk 0:01:16]}  Ka7 {[%clk 0:00:57]} 27. Qd4+ {[%clk 0:01:15]}  Qc5 {[%clk 0:00:44]} 28. Qxc5+ {[%clk 0:01:00]}  Rxc5 {[%clk 0:00:45]} 29. c4 {[%clk 0:01:00]}  Kb6 {[%clk 0:00:37]} 30. Re7 {[%clk 0:00:59]}  Rf5 {[%clk 0:00:35]} 31. f3 {[%clk 0:00:56]}  h5 {[%clk 0:00:30]} 32. Kf2 {[%clk 0:00:56]}  Kc6 {[%clk 0:00:30]} 33. g3 {[%clk 0:00:54]}  b5 {[%clk 0:00:25]} 34. cxb5+ {[%clk 0:00:52]}  Kxb5 {[%clk 0:00:24]} 35. f4 {[%clk 0:00:51]}  h4 {[%clk 0:00:20]} 36. Kf3 {[%clk 0:00:46]}  hxg3 {[%clk 0:00:19]} 37. Kxg3 {[%clk 0:00:46]}  Kb4 {[%clk 0:00:19]} 38. Re4+ {[%clk 0:00:44]}  Kc3 {[%clk 0:00:15]} 39. Re2 {[%clk 0:00:31]}  Rf6 {[%clk 0:00:12]} 40. Kg4 {[%clk 0:00:31]}  Rd6 {[%clk 0:00:10]} 41. f5 {[%clk 0:00:30]}  Kd3 {[%clk 0:00:06]} 42. Re5 {[%clk 0:00:28]}  Kd4 {[%clk 0:00:04]} 43. Ra5 {[%clk 0:00:27]}  f6 {[%clk 0:00:02]} 44. Kh5 {[%clk 0:00:27]}  Ke4 {[%clk 0:00:02]} 45. Kg6 {[%clk 0:00:27]}  Rb6 {[%clk 0:00:02]} 46. Rc5 {[%clk 0:00:20]}  Kd4 {[%clk 0:00:02]} 47. Rc7 {[%clk 0:00:19]}  Kd3 {[%clk 0:00:01]} 48. Re7 {[%clk 0:00:18]}  Kc2 {[%clk 0:00:02]} 49. Re6 {[%clk 0:00:18]}  Rb8 {[%clk 0:00:02]} 50. Rxa6 {[%clk 0:00:18]}  Rg8+ {[%clk 0:00:01]} 51. Kxf6 {[%clk 0:00:18]}  Rg3 {[%clk 0:00:02]} 52. Kf7 {[%clk 0:00:18]}  Re3 {[%clk 0:00:03]} 53. f6 {[%clk 0:00:18]}  Kb2 {[%clk 0:00:04]} 54. Kg7 {[%clk 0:00:17]}  Rd3 {[%clk 0:00:04]} 55. f7 {[%clk 0:00:17]}  Rg3+ {[%clk 0:00:05]} 56. Rg6 {[%clk 0:00:17]} 1-0


[Site "https://www.chess.com"]

[Event "Titled Tuesday Blitz March 21 Late 2023"]
[White "Szente Varga, Fruzsina"]
[Black "Volkov, Maksim"]
[WhiteFideId "712264"]
[BlackFideId "54123070"]
[WhiteElo "1994"]
[BlackElo "2312"]
[Result "0-1"]
[Round "03"]
[TimeControl "180+2"]
[Date "2023.03.21"]
[WhiteClock "0:00:10"]
[BlackClock "0:01:12"]

1. e4 {[%clk 0:03:00]}  c5 {[%clk 0:02:59]} 2. f3 {[%clk 0:02:59]}  Nc6 {[%clk 0:02:51]} 3. Bb5 {[%clk 0:02:58]}  g6 {[%clk 0:02:49]} 4. Ne2 {[%clk 0:02:58]}  Bg7 {[%clk 0:02:49]} 5. O-O {[%clk 0:02:58]}  d6 {[%clk 0:02:44]} 6. c3 {[%clk 0:02:57]}  e5 {[%clk 0:02:40]} 7. Kh1 {[%clk 0:02:46]}  Ne7 {[%clk 0:02:39]} 8. d4 {[%clk 0:02:43]}  cxd4 {[%clk 0:02:38]} 9. cxd4 {[%clk 0:02:43]}  Qb6 {[%clk 0:02:39]} 10. Bxc6+ {[%clk 0:02:31]}  Nxc6 {[%clk 0:02:36]} 11. dxe5 {[%clk 0:02:10]}  dxe5 {[%clk 0:02:34]} 12. Qd6 {[%clk 0:02:00]}  Be6 {[%clk 0:02:33]} 13. Nbc3 {[%clk 0:01:44]}  Rd8 {[%clk 0:02:31]} 14. Qa3 {[%clk 0:01:44]}  Nb4 {[%clk 0:02:21]} 15. Bg5 {[%clk 0:01:34]}  f6 {[%clk 0:02:19]} 16. Be3 {[%clk 0:01:28]}  Qxe3 {[%clk 0:02:18]} 17. Qxb4 {[%clk 0:01:28]}  Qb6 {[%clk 0:02:18]} 18. Qa3 {[%clk 0:00:56]}  Bf8 {[%clk 0:01:59]} 19. Qa4+ {[%clk 0:00:55]}  Kf7 {[%clk 0:01:59]} 20. Rad1 {[%clk 0:00:50]}  Bc5 {[%clk 0:01:59]} 21. b3 {[%clk 0:00:34]}  Rxd1 {[%clk 0:01:58]} 22. Rxd1 {[%clk 0:00:35]}  Rd8 {[%clk 0:01:59]} 23. Rxd8 {[%clk 0:00:33]}  Qxd8 {[%clk 0:02:00]} 24. Qb5 {[%clk 0:00:31]}  Bb6 {[%clk 0:01:59]} 25. h3 {[%clk 0:00:31]}  Qd2 {[%clk 0:01:58]} 26. a4 {[%clk 0:00:25]}  Qd7 {[%clk 0:01:40]} 27. Qb4 {[%clk 0:00:22]}  Qe7 {[%clk 0:01:35]} 28. Qb5 {[%clk 0:00:22]}  Qc5 {[%clk 0:01:33]} 29. Qd3 {[%clk 0:00:18]}  Bxb3 {[%clk 0:01:30]} 30. Qd7+ {[%clk 0:00:18]}  Qe7 {[%clk 0:01:30]} 31. Qb5 {[%clk 0:00:17]}  Be6 {[%clk 0:01:30]} 32. Nd5 {[%clk 0:00:18]}  Qd7 {[%clk 0:01:29]} 33. Nxb6 {[%clk 0:00:17]}  Qxb5 {[%clk 0:01:29]} 34. axb5 {[%clk 0:00:18]}  axb6 {[%clk 0:01:30]} 35. Nc3 {[%clk 0:00:18]}  Bc4 {[%clk 0:01:30]} 36. Kg1 {[%clk 0:00:18]}  Ke6 {[%clk 0:01:31]} 37. Kf2 {[%clk 0:00:19]}  Kd6 {[%clk 0:01:32]} 38. Ke3 {[%clk 0:00:19]}  Kc5 {[%clk 0:01:32]} 39. Kd2 {[%clk 0:00:18]}  Bxb5 {[%clk 0:01:31]} 40. Nd5 {[%clk 0:00:19]}  f5 {[%clk 0:01:31]} 41. Nf6 {[%clk 0:00:18]}  h6 {[%clk 0:01:28]} 42. exf5 {[%clk 0:00:16]}  gxf5 {[%clk 0:01:28]} 43. Ng8 {[%clk 0:00:17]}  h5 {[%clk 0:01:27]} 44. Nf6 {[%clk 0:00:17]}  h4 {[%clk 0:01:27]} 45. Ke3 {[%clk 0:00:17]}  Kd6 {[%clk 0:01:26]} 46. Ng8 {[%clk 0:00:15]}  Ke6 {[%clk 0:01:25]} 47. Nh6 {[%clk 0:00:15]}  Kf6 {[%clk 0:01:23]} 48. f4 {[%clk 0:00:14]}  e4 {[%clk 0:01:23]} 49. Ng8+ {[%clk 0:00:14]}  Kf7 {[%clk 0:01:23]} 50. Nh6+ {[%clk 0:00:15]}  Kg6 {[%clk 0:01:23]} 51. Ng8 {[%clk 0:00:15]}  Kf7 {[%clk 0:01:16]} 52. Nh6+ {[%clk 0:00:15]}  Ke6 {[%clk 0:01:14]} 53. Kd4 {[%clk 0:00:11]}  Bf1 {[%clk 0:01:13]} 54. g4 {[%clk 0:00:10]}  hxg3 {[%clk 0:01:13]} 55. Ke3 {[%clk 0:00:10]}  Bxh3 {[%clk 0:01:12]} 0-1


[Site "https://www.chess.com"]

[Event "Titled Tuesday Blitz March 21 Late 2023"]
[White "Srinath, Rao S.V."]
[Black "ArturoCaceres"]
[WhiteFideId "5028876"]
[WhiteElo "2196"]
[BlackElo "2400"]
[Result "1-0"]
[Round "03"]
[TimeControl "180+2"]
[Date "2023.03.21"]
[WhiteClock "0:00:15"]
[BlackClock "0:00:03"]

1. d4 {[%clk 0:03:00]}  Nf6 {[%clk 0:02:33]} 2. Nc3 {[%clk 0:03:00]}  d5 {[%clk 0:02:18]} 3. Bf4 {[%clk 0:02:59]}  a6 {[%clk 0:02:19]} 4. e3 {[%clk 0:02:58]}  e6 {[%clk 0:02:19]} 5. g4 {[%clk 0:02:57]}  Bb4 {[%clk 0:02:20]} 6. f3 {[%clk 0:02:46]}  c5 {[%clk 0:02:19]} 7. Ne2 {[%clk 0:02:43]}  cxd4 {[%clk 0:02:18]} 8. exd4 {[%clk 0:02:43]}  Nc6 {[%clk 0:02:16]} 9. Qd3 {[%clk 0:02:38]}  Bd6 {[%clk 0:02:16]} 10. O-O-O {[%clk 0:02:25]}  Bxf4+ {[%clk 0:02:10]} 11. Nxf4 {[%clk 0:02:26]}  Qd6 {[%clk 0:02:00]} 12. Qe3 {[%clk 0:02:25]}  h6 {[%clk 0:01:59]} 13. h4 {[%clk 0:02:24]}  Bd7 {[%clk 0:01:58]} 14. Bg2 {[%clk 0:02:07]}  O-O-O {[%clk 0:01:50]} 15. g5 {[%clk 0:02:08]}  Ng8 {[%clk 0:01:48]} 16. g6 {[%clk 0:02:02]}  Nge7 {[%clk 0:01:39]} 17. gxf7 {[%clk 0:01:57]}  Nf5 {[%clk 0:01:38]} 18. Qd2 {[%clk 0:01:53]}  Rhf8 {[%clk 0:01:33]} 19. Nce2 {[%clk 0:01:46]}  Rxf7 {[%clk 0:01:25]} 20. Ng6 {[%clk 0:01:46]}  Kb8 {[%clk 0:01:23]} 21. f4 {[%clk 0:01:44]}  Rc8 {[%clk 0:01:14]} 22. Ne5 {[%clk 0:01:38]}  Nxe5 {[%clk 0:01:12]} 23. fxe5 {[%clk 0:01:39]}  Qc6 {[%clk 0:01:08]} 24. Kb1 {[%clk 0:01:33]}  Qb6 {[%clk 0:01:02]} 25. Nc1 {[%clk 0:01:21]}  Rc4 {[%clk 0:00:56]} 26. c3 {[%clk 0:01:11]}  a5 {[%clk 0:00:56]} 27. Bf1 {[%clk 0:01:09]}  Rc8 {[%clk 0:00:56]} 28. Nd3 {[%clk 0:01:04]}  Ng3 {[%clk 0:00:55]} 29. Bg2 {[%clk 0:00:46]}  Nxh1 {[%clk 0:00:53]} 30. Rxh1 {[%clk 0:00:47]}  Rcf8 {[%clk 0:00:47]} 31. Nc5 {[%clk 0:00:47]}  Bc8 {[%clk 0:00:47]} 32. Bh3 {[%clk 0:00:40]}  Rf2 {[%clk 0:00:44]} 33. Qc1 {[%clk 0:00:40]}  R8f3 {[%clk 0:00:27]} 34. Bg4 {[%clk 0:00:38]}  Rg3 {[%clk 0:00:26]} 35. Bh3 {[%clk 0:00:32]}  Re3 {[%clk 0:00:14]} 36. Na4 {[%clk 0:00:25]}  Qb5 {[%clk 0:00:11]} 37. Qxe3 {[%clk 0:00:26]}  Rf7 {[%clk 0:00:03]} 38. Nc5 {[%clk 0:00:21]}  Qc6 {[%clk 0:00:02]} 39. Rf1 {[%clk 0:00:20]}  b6 {[%clk 0:00:03]} 40. Rxf7 {[%clk 0:00:20]}  bxc5 {[%clk 0:00:04]} 41. dxc5 {[%clk 0:00:20]}  Qe8 {[%clk 0:00:04]} 42. Qf2 {[%clk 0:00:19]}  Qb5 {[%clk 0:00:03]} 43. Bf1 {[%clk 0:00:18]}  Qa4 {[%clk 0:00:03]} 44. b3 {[%clk 0:00:16]}  Qe4+ {[%clk 0:00:03]} 45. Kb2 {[%clk 0:00:16]}  a4 {[%clk 0:00:01]} 46. c6 {[%clk 0:00:16]}  a3+ {[%clk 0:00:02]} 47. Kxa3 {[%clk 0:00:16]}  Qb1 {[%clk 0:00:03]} 48. Qa7# {[%clk 0:00:15]} 1-0


[Site "https://www.chess.com"]

[Event "Titled Tuesday Blitz March 21 Late 2023"]
[White "Kaganskiy, Gleb"]
[Black "Brodowski, Piotr"]
[WhiteFideId "4132025"]
[BlackFideId "1124480"]
[WhiteElo "2165"]
[BlackElo "2351"]
[Result "0-1"]
[Round "03"]
[TimeControl "180+2"]
[Date "2023.03.21"]
[WhiteClock "0:01:48"]
[BlackClock "0:02:13"]

1. d4 {[%clk 0:02:54]}  Nf6 {[%clk 0:02:57]} 2. Nf3 {[%clk 0:02:54]}  c5 {[%clk 0:02:50]} 3. e3 {[%clk 0:02:51]}  g6 {[%clk 0:02:48]} 4. Bd3 {[%clk 0:02:41]}  Bg7 {[%clk 0:02:47]} 5. b3 {[%clk 0:02:41]}  cxd4 {[%clk 0:02:41]} 6. exd4 {[%clk 0:02:40]}  d5 {[%clk 0:02:41]} 7. Bb2 {[%clk 0:02:35]}  O-O {[%clk 0:02:41]} 8. O-O {[%clk 0:02:35]}  Nc6 {[%clk 0:02:41]} 9. Re1 {[%clk 0:02:35]}  Ne8 {[%clk 0:02:31]} 10. Ne5 {[%clk 0:02:25]}  Nd6 {[%clk 0:02:31]} 11. c4 {[%clk 0:02:21]}  dxc4 {[%clk 0:02:30]} 12. bxc4 {[%clk 0:02:20]}  Bf5 {[%clk 0:02:27]} 13. d5 {[%clk 0:02:06]}  Qb6 {[%clk 0:02:13]} 14. Bc3 {[%clk 0:01:48]}  Nxe5 {[%clk 0:02:12]} 15. Bxe5 {[%clk 0:01:48]}  Bxe5 {[%clk 0:02:13]} 16. Rxe5 {[%clk 0:01:48]}  Qd4 {[%clk 0:02:13]} 0-1


[Site "https://www.chess.com"]